fUST/lending_fUST_20260310
["ID","MTS","AMOUNT","RATE_DAILY","PERIOD"]
[408051918,1773072652938,-500.0,0.00013698,2]
[408051919,1773072652948,-500.0,0.00013698,2]
[408051920,1773072652958,-500.0,0.00013698,2]
[408051921,1773072652967,-500.0,0.00013698,2]
[408051922,1773072652977,-373.98479998,0.00013698,2]
[408051923,1773072652987,-1384.24,0.00013698,2]
[408051924,1773072652996,-1384.24,0.00013698,2]
[408051925,1773072653006,-1384.24,0.00013698,2]
[408051926,1773072653015,-1384.24,0.00013698,2]
[408051927,1773072653025,-1384.24,0.00013698,2]
[408051928,1773072653034,-1384.24,0.00013698,2]
[408051929,1773072653044,-1384.24,0.00013698,2]
[408051930,1773072653056,-1384.24,0.00013698,2]
[408051931,1773072653070,-1384.24,0.00013698,2]
[408051932,1773072653080,-1384.24,0.00013698,2]
[408051933,1773072653089,-1384.24,0.00013698,2]
[408051934,1773072653100,-1384.24,0.00013698,2]
[408051935,1773072653110,-1384.24,0.00013698,2]
[408051936,1773072653120,-1384.24,0.00013698,2]
[408051937,1773072653130,-1384.24,0.00013698,2]
[408051938,1773072653142,-1384.24,0.00013698,2]
[408051939,1773072653151,-1384.24,0.00013698,2]
[408051940,1773072653162,-1384.24,0.00013698,2]
[408051941,1773072653172,-1384.24,0.00013698,2]
[408051942,1773072653181,-1384.24,0.00013698,2]
[408051943,1773072653191,-1384.24,0.00013698,2]
[408051944,1773072653201,-1384.24,0.00013698,2]
[408051945,1773072653211,-1384.24,0.00013698,2]
[408051946,1773072653220,-1384.27186368,0.00013698,2]
[408051947,1773072653230,-155.34699083,0.00013698,2]
[408051948,1773072653239,-156.0,0.00013699,2]
[408051949,1773072653249,-156.0,0.00013699,2]
[408051950,1773072653258,-179.9640072,0.00013699,2]
[408051951,1773072653268,-1000.0,0.00013699,2]
[408051952,1773072653278,-3653.403401,0.00013699,2]
[408051953,1773072653287,-151.0,0.00013699,2]
[408051954,1773072653296,-151.0,0.00013699,2]
[408051955,1773072653306,-151.0,0.00013699,2]
[408051956,1773072653315,-151.0,0.00013699,2]
[408051957,1773072653324,-151.0,0.00013699,2]
[408051958,1773072653333,-151.0,0.00013699,2]
[408051959,1773072653342,-151.0,0.00013699,2]
[408051960,1773072653351,-151.0,0.00013699,2]
[408051961,1773072653360,-292.0,0.00013699,2]
[408051962,1773072653370,-500.0,0.00013699,2]
[408051963,1773072653379,-150.22921744,0.00013699,2]
[408051964,1773072653389,-180.14993494,0.00013699,2]
[408051965,1773072653399,-500.0,0.00013699,2]
[408051966,1773072653409,-500.0,0.00013699,2]
[408051967,1773072653418,-527.82192832,0.00013699,2]
[408051968,1773072653427,-2000.0,0.00013699,7]
[408051969,1773072653437,-500.0,0.00013699,2]
[408051970,1773072653447,-500.36856492,0.00013699,2]
[408051971,1773072653457,-503.87191941,0.00013699,2]
[408051972,1773072653466,-305.07883527,0.00013699,2]
[408051973,1773072653476,-522.96339268,0.00013699,2]
[408051974,1773072653485,-500.0,0.00013699,2]
[408051975,1773072653495,-500.0,0.00013699,2]
[408051976,1773072653505,-501.13124042,0.00013699,2]
[408051977,1773072653514,-164.99258169,0.00013699,2]
[408051978,1773072653523,-500.15573892,0.00013699,2]
[408051979,1773072653533,-167.49150104,0.00013699,2]
[408051980,1773072653542,-500.75481114,0.00013699,2]
[408051981,1773072653551,-539.16353691,0.00013699,2]
[408051982,1773072653560,-501.22186871,0.00013699,2]
[408051983,1773072653570,-500.97307246,0.00013699,2]
[408051984,1773072653579,-501.14348885,0.00013699,2]
[408051985,1773072653588,-500.49106066,0.00013699,2]
[408051986,1773072653596,-159.67131193,0.00013699,2]
[408051987,1773072653606,-1000.0,0.00013699,2]
[408051988,1773072653615,-500.0,0.00013699,2]
[408051989,1773072653624,-500.0,0.00013699,2]
[408051990,1773072653634,-193.88756259,0.00013699,2]
[408051991,1773072653643,-161.19,0.000137,2]
[408051992,1773072653652,-150.0,0.000137,2]
[408051993,1773072653662,-943.5957773,0.00013799,14]
[408051994,1773072653671,-764.8464263,0.00013799,14]
[408051995,1773072653681,-276.12024628,0.00013811,30]
[408051996,1773072653691,-379.70850008,0.00013853,14]
[408051997,1773072653701,-1519.31377836,0.00013883,14]
[408051998,1773072653710,-843.2,0.000139,2]
[408051999,1773072653720,-173.17,0.00013999,2]
[408052000,1773072653730,-761.05320682,0.00014037,2]
[408052001,1773072653740,-1519.31377836,0.00014088,14]
[408052002,1773072653750,-161.19,0.000141,2]
[408052003,1773072653762,-943.5957773,0.00014144,14]
[408052004,1773072653772,-764.8464263,0.00014144,14]
[408052005,1773072653782,-37940.67585728,0.00014144,2]
[408052006,1773072653792,-2000.0,0.00014188,7]
[408052007,1773072653801,-367.01551081,0.00014199,14]
[408052008,1773072653810,-150.0,0.000142,2]
[408052009,1773072653820,-392.35489649,0.00014247,2]
[408052010,1773072653830,-1000.0,0.00014247,2]
[408052011,1773072653841,-1000.0,0.00014247,2]
[408052012,1773072653851,-1000.0,0.00014247,2]
[408052013,1773072653860,-1134.87161526,0.00014247,2]
[408052014,1773072653869,-701.41912458,0.00014247,2]
[408052015,1773072653880,-276.12024628,0.00014275,30]
[408052016,1773072653889,-1519.31377836,0.00014292,14]
[408052017,1773072653899,-173.17,0.000143,2]
[408052018,1773072653908,-187.28610808,0.0001431,14]
[408052019,1773072653919,-292.82613973,0.00014406,14]
[408052020,1773072653928,-220.02715671,0.00014406,14]
[408052021,1773072653938,-199.73290842,0.00014406,14]
[408052022,1773072653948,-14416.45656129,0.00014444,2]
[408052024,1773072698625,400.0,2.611e-05,120]
[408052036,1773073202334,162.13,2e-05,2]
[408052055,1773073480457,5000.0,2.001e-05,2]
[408052056,1773073502892,5000.0,2.001e-05,2]
[408052057,1773073524775,5000.0,2.001e-05,2]
[408052058,1773073546431,5000.0,2.001e-05,2]
[408052059,1773073568252,5000.0,2.001e-05,2]
[408052060,1773073590005,3669.68501056,2.001e-05,2]
[408052061,1773073669987,5000.0,2.001e-05,2]
[408052062,1773073802770,155.44,2e-05,2]
[408052063,1773073803086,155.44,2e-05,2]
[408052064,1773073803398,155.44,2e-05,2]
[408052065,1773073803694,155.44,2e-05,2]
[408052066,1773073803974,155.44,2e-05,2]
[408052067,1773073831354,-2000.0,2.032e-05,2]
[408052085,1773073831915,-1280.11762686,2.032e-05,2]
[408052094,1773073832042,-914.97430498,2.032e-05,2]
[408052100,1773073832553,-804.90806816,2.032e-05,2]
[408052101,1773073832906,-305.86903736,2.053e-05,2]
[408052102,1773073832931,-162.13,2.1e-05,2]
[408052103,1773073832954,-162.13,2.1e-05,2]
[408052104,1773073832977,-155.44,2.1e-05,2]
[408052105,1773073832999,-155.44,2.1e-05,2]
[408052106,1773073833020,-155.44,2.1e-05,2]
[408052107,1773073833043,-98.64289448,2.1e-05,2]
[408052108,1773073833094,-56.79710552,2.1e-05,2]
[408052109,1773073833119,-155.44,2.1e-05,2]
[408052110,1773073833143,-155.44,2.1e-05,2]
[408052111,1773073833165,-155.44,2.1e-05,2]
[408052112,1773073833189,-155.44,2.1e-05,2]
[408052113,1773073833212,-155.44,2.1e-05,2]
[408052114,1773073833235,-155.44,2.1e-05,2]
[408052115,1773073833256,-162.13,2.2e-05,2]
[408052116,1773073833278,-162.13,2.2e-05,2]
[408052117,1773073833301,-155.44,2.2e-05,2]
[408052118,1773073833323,-155.44,2.2e-05,2]
[408052119,1773073833345,-155.44,2.2e-05,2]
[408052120,1773073833367,-155.44,2.2e-05,2]
[408052121,1773073833392,-64.54289448,2.2e-05,2]
[408052122,1773073833571,-90.89710552,2.2e-05,2]
[408052123,1773073833593,-167.337006,2.407e-05,2]
[408052124,1773073833616,-225.0,2.61e-05,2]
[408052125,1773073833637,-1516.76588848,2.611e-05,2]
[408052126,1773073833684,-2000.0,2.611e-05,2]
[408052127,1773073834052,-1622.69681065,2.611e-05,2]
[408052128,1773073834073,-167.337006,2.648e-05,2]
[408052129,1773073834095,-167.337006,2.888e-05,2]
[408052131,1773073838118,-167.337006,3.129e-05,2]
[408052132,1773073838128,-167.337006,3.37e-05,2]
[408052133,1773073838137,-167.337006,3.61e-05,2]
[408052134,1773073838147,-167.337006,3.851e-05,2]
[408052135,1773073838157,-360.92546408,4.053e-05,2]
[408052136,1773073838167,-167.337006,4.092e-05,2]
[408052137,1773073838176,-167.337006,4.332e-05,2]
[408052138,1773073838185,-2150.738,4.479e-05,2]
[408052139,1773073838194,-167.337006,4.573e-05,2]
[408052140,1773073838203,-732.0,4.629e-05,2]
[408052141,1773073838212,-435.0,4.629e-05,2]
[408052142,1773073838222,-167.337006,4.814e-05,2]
[408052143,1773073838232,-2230.315306,5.027e-05,2]
[408052144,1773073838243,-2312.83697232,5.575e-05,2]
[408052145,1773073838253,-415.9818908,6.053e-05,2]
[408052146,1773073838262,-151.0,6.094e-05,2]
[408052147,1773073838272,-156.587,6.094e-05,2]
[408052148,1773073838282,-162.380719,6.094e-05,2]
[408052149,1773073838291,-168.3888056,6.094e-05,2]
[408052150,1773073838302,-174.61919141,6.094e-05,2]
[408052151,1773073838311,-181.08010149,6.094e-05,2]
[408052152,1773073838320,-187.78006525,6.094e-05,2]
[408052153,1773073838329,-194.72792766,6.094e-05,2]
[408052154,1773073838339,-201.93286099,6.094e-05,2]
[408052155,1773073838349,-209.40437684,6.094e-05,2]
[408052156,1773073838358,-217.15233878,6.094e-05,2]
[408052157,1773073838367,-225.18697532,6.094e-05,2]
[408052158,1773073838376,-233.51889341,6.094e-05,2]
[408052159,1773073838386,-242.15909246,6.094e-05,2]
[408052160,1773073838397,-251.11897888,6.094e-05,2]
[408052161,1773073838407,-260.4103811,6.094e-05,2]
[408052162,1773073838416,-270.0455652,6.094e-05,2]
[408052163,1773073838428,-280.03725112,6.094e-05,2]
[408052164,1773073838437,-290.39862941,6.094e-05,2]
[408052165,1773073838446,-301.1433787,6.094e-05,2]
[408052166,1773073838456,-6233.5875662,6.098e-05,2]
[408052167,1773073838465,-2398.4119403,6.123e-05,2]
[408052168,1773073838475,-2487.15318209,6.671e-05,2]
[408052169,1773073838484,-214.45316941,7.013e-05,2]
[408052170,1773073838496,-500.0,7.013e-05,2]
[408052171,1773073838506,-500.0,7.039e-05,2]
[408052172,1773073838515,-500.0,7.039e-05,2]
[408052173,1773073838527,-233.18788091,7.039e-05,2]
[408052174,1773073838538,-500.0,7.039e-05,2]
[408052175,1773073838548,-500.0,7.039e-05,2]
[408052176,1773073838558,-334.22581132,7.039e-05,2]
[408052177,1773073838569,-500.0,7.039e-05,2]
[408052178,1773073838579,-500.0,7.039e-05,2]
[408052179,1773073838589,-500.0,7.039e-05,2]
[408052180,1773073838599,-500.0,7.039e-05,2]
[408052181,1773073838609,-500.0,7.039e-05,2]
[408052182,1773073838619,-500.0,7.039e-05,2]
[408052183,1773073838629,-500.0,7.039e-05,2]
[408052184,1773073838639,-500.0,7.039e-05,2]
[408052185,1773073838650,-500.0,7.039e-05,2]
[408052186,1773073838660,-500.0,7.039e-05,2]
[408052187,1773073838669,-500.0,7.039e-05,2]
[408052188,1773073838678,-500.0,7.039e-05,2]
[408052189,1773073838687,-500.0,7.039e-05,2]
[408052190,1773073838696,-500.0,7.039e-05,2]
[408052191,1773073838705,-500.0,7.039e-05,2]
[408052192,1773073838715,-418.90635278,7.039e-05,2]
[408052193,1773073838724,-165.4735512,7.039e-05,2]
[408052194,1773073838734,-500.0,7.039e-05,2]
[408052195,1773073838743,-500.0,7.039e-05,2]
[408052196,1773073838753,-500.0,7.039e-05,2]
[408052197,1773073838763,-500.0,7.039e-05,2]
[408052198,1773073838773,-500.0,7.039e-05,2]
[408052199,1773073838783,-500.0,7.039e-05,2]
[408052200,1773073838792,-500.0,7.039e-05,2]
[408052201,1773073838802,-500.0,7.039e-05,2]
[408052202,1773073838812,-500.0,7.039e-05,2]
[408052203,1773073838822,-500.0,7.039e-05,2]
[408052204,1773073838832,-500.0,7.039e-05,2]
[408052205,1773073838842,-500.0,7.039e-05,2]
[408052206,1773073838851,-500.0,7.039e-05,2]
[408052207,1773073838861,-500.0,7.039e-05,2]
[408052208,1773073838871,-500.0,7.039e-05,2]
[408052209,1773073838880,-500.0,7.039e-05,2]
[408052210,1773073838890,-153.81363093,7.039e-05,2]
[408052211,1773073838902,-500.0,7.039e-05,2]
[408052212,1773073838911,-500.0,7.039e-05,2]
[408052213,1773073838921,-500.0,7.039e-05,2]
[408052214,1773073838930,-500.0,7.039e-05,2]
[408052215,1773073838940,-500.0,7.039e-05,2]
[408052216,1773073838949,-500.0,7.039e-05,2]
[408052217,1773073838959,-500.0,7.039e-05,2]
[408052218,1773073838968,-500.0,7.039e-05,2]
[408052219,1773073838978,-500.0,7.039e-05,2]
[408052220,1773073838987,-500.0,7.039e-05,2]
[408052221,1773073838996,-500.0,7.039e-05,2]
[408052222,1773073839007,-500.0,7.039e-05,2]
[408052223,1773073839017,-500.0,7.039e-05,2]
[408052224,1773073839027,-500.0,7.039e-05,2]
[408052225,1773073839036,-549.95535458,7.039e-05,2]
[408052226,1773073839046,-500.0,7.039e-05,2]
[408052227,1773073839102,-500.0,7.039e-05,2]
[408052228,1773073839112,-500.0,7.039e-05,2]
[408052229,1773073839121,-500.0,7.039e-05,2]
[408052230,1773073839130,-635.40821315,7.039e-05,2]
[408052231,1773073839139,-500.0,7.039e-05,2]
[408052232,1773073839152,-500.0,7.039e-05,2]
[408052233,1773073839162,-500.0,7.039e-05,2]
[408052234,1773073839171,-500.0,7.039e-05,2]
[408052235,1773073839180,-500.0,7.039e-05,2]
[408052236,1773073839189,-500.0,7.039e-05,2]
[408052237,1773073839199,-500.0,7.039e-05,2]
[408052238,1773073839208,-500.0,7.039e-05,2]
[408052239,1773073839218,-500.0,7.039e-05,2]
[408052240,1773073839227,-500.0,7.039e-05,2]
[408052241,1773073839237,-368.56369749,7.039e-05,2]
[408052242,1773073839246,-500.0,7.039e-05,2]
[408052243,1773073839256,-500.0,7.039e-05,2]
[408052244,1773073839267,-500.0,7.039e-05,2]
[408052245,1773073839277,-500.0,7.039e-05,2]
[408052246,1773073839286,-500.0,7.039e-05,2]
[408052247,1773073839296,-500.0,7.039e-05,2]
[408052248,1773073839305,-500.0,7.039e-05,2]
[408052249,1773073839315,-500.0,7.039e-05,2]
[408052250,1773073839324,-500.0,7.039e-05,2]
[408052251,1773073839334,-500.0,7.039e-05,2]
[408052252,1773073839343,-500.0,7.039e-05,2]
[408052253,1773073839353,-500.0,7.039e-05,2]
[408052254,1773073839362,-500.0,7.039e-05,2]
[408052255,1773073839371,-499.99999999,7.039e-05,2]
[408052256,1773073839380,-1959462.72567158,7.04e-05,2]
[408052257,1773073839394,-287.772,7.04e-05,2]
[408052258,1773073839405,-5100.54531519,7.04e-05,2]
[408052313,1773073840689,-2893.20416925,7.04e-05,2]
[408052314,1773073840731,-442.58507751,7.04e-05,2]
[408052591,1773073843774,-2943.26994057,6.97e-05,2]
[408052613,1773073845924,-802.0264,6.97e-05,2]
[408052614,1773073845936,-356.62899999,6.97e-05,2]
[408052615,1773073845947,-898.07465944,6.97e-05,2]
[408052616,1773073845956,-207300.39077978,7.04e-05,2]
[408052617,1773073846036,-474.83744084,7.04e-05,2]
[408052618,1773073846047,-2329.18508868,7.04e-05,2]
[408052622,1773074402153,195.0,2e-05,2]
[408052626,1773074983774,1370.04,2e-05,2]
[408052627,1773075002891,159.07,2e-05,2]
[408052628,1773075003167,159.07,2e-05,2]
[408052629,1773075003436,159.07,2e-05,2]
[408052630,1773075003710,159.07,2e-05,2]
[408052655,1773075032008,-5000.0,2.079e-05,2]
[408052657,1773075032017,-159.07,2.1e-05,2]
[408052659,1773075032025,-159.07,2.1e-05,2]
[408052661,1773075032034,-159.07,2.1e-05,2]
[408052662,1773075032044,-159.07,2.1e-05,2]
[408052664,1773075032053,-159.07,2.1e-05,2]
[408052665,1773075032062,-159.07,2.1e-05,2]
[408052667,1773075032071,-159.07,2.1e-05,2]
[408052669,1773075032080,-159.07,2.1e-05,2]
[408052670,1773075032091,-159.07,2.2e-05,2]
[408052671,1773075032100,-159.07,2.2e-05,2]
[408052672,1773075032109,-159.07,2.2e-05,2]
[408052674,1773075032118,-159.07,2.2e-05,2]
[408052676,1773075032128,-328.0355239,4.828e-05,2]
[408052678,1773075032139,-732.0,4.957e-05,2]
[408052680,1773075032149,-435.0,4.957e-05,2]
[408052682,1773075032157,-300.0,5.879e-05,2]
[408052684,1773075032166,-500.0,6.673e-05,2]
[408052686,1773075032175,-96702.02492089,6.7e-05,2]
[408052688,1773075032187,-5004.69157674,6.7e-05,2]
[408052690,1773075032199,-490.57899851,6.7e-05,2]
[408052730,1773075038146,-284.196,6.699e-05,2]
[408052825,1773075040619,-442.58507751,6.633e-05,2]
[408052827,1773075040629,-215.804,6.699e-05,2]
[408052829,1773075040638,-239.31262566,6.699e-05,2]
[408052831,1773075040647,-500.0,6.699e-05,2]
[408052833,1773075040656,-500.0,6.699e-05,2]
[408052835,1773075040665,-500.0,6.699e-05,2]
[408052837,1773075040675,-348.37869035,6.699e-05,2]
[408052839,1773075040684,-356.38165717,6.699e-05,2]
[408052841,1773075040694,-143.61834283,6.699e-05,2]
[408052843,1773075040704,-135.1780344,6.699e-05,2]
[408052845,1773075040715,-364.8219656,6.699e-05,2]
[408052847,1773075040724,-239.1780344,6.699e-05,2]
[408053057,1773075043357,-1154.28534846,6.632e-05,2]
[408053058,1773075043371,-622.06039237,6.632e-05,2]
[408053061,1773075043527,-250.820863,6.632e-05,2]
[408053089,1773075046092,-1136.279,6.632e-05,2]
[408053090,1773075046104,-1836.55439617,6.632e-05,2]
[408053091,1773075046114,-23.99570977,6.699e-05,2]
[408053092,1773075046124,-204.99553546,6.699e-05,2]
[408053093,1773075046133,-80077.32619983,6.7e-05,2]
[408053103,1773075602165,156.2,2e-05,2]
[408053107,1773075624431,-3727.25990968,3.625e-05,2]
[408053121,1773076202747,157.14,2e-05,2]
[408053154,1773076232312,-818.18850861,3.264e-05,2]
[408053156,1773076232321,-3272.9074063,3.297e-05,2]
[408053332,1773076238208,-555.423,3.297e-05,2]
[408053333,1773076238263,-1171.6695937,3.297e-05,2]
[408053334,1773076238273,-632.90518654,3.33e-05,2]
[408053335,1773076238285,-75.01719655,3.33e-05,2]
[408053336,1773076238294,-324.92742584,3.38e-05,2]
[408053337,1773076238303,-4086.6422513,3.662e-05,2]
[408053338,1773076238313,-300.0,3.734e-05,2]
[408053339,1773076238323,-300.0,3.734e-05,2]
[408053340,1773076238332,-300.0,3.734e-05,2]
[408053341,1773076238347,-300.0,3.734e-05,2]
[408053342,1773076238356,-300.0,3.734e-05,2]
[408053343,1773076238366,-300.0,3.734e-05,2]
[408053344,1773076238375,-300.0,3.734e-05,2]
[408053345,1773076238384,-300.0,3.734e-05,2]
[408053346,1773076238393,-300.0,3.734e-05,2]
[408053347,1773076238403,-300.0,3.734e-05,2]
[408053349,1773076238412,-300.0,3.734e-05,2]
[408053350,1773076238422,-300.0,3.734e-05,2]
[408053352,1773076238431,-300.0,3.734e-05,2]
[408053354,1773076238440,-300.0,3.734e-05,2]
[408053356,1773076238449,-300.0,3.734e-05,2]
[408053358,1773076238458,-600.0,3.808e-05,2]
[408053360,1773076238467,-720.0,4.188e-05,2]
[408053362,1773076238476,-3000.0,4.6e-05,30]
[408053364,1773076238485,-864.0,4.607e-05,2]
[408053366,1773076238495,-3000.0,4.61e-05,30]
[408053368,1773076238505,-3000.0,4.62e-05,30]
[408053370,1773076238517,-3000.0,4.63e-05,30]
[408053372,1773076238526,-3000.0,4.64e-05,30]
[408053374,1773076238536,-3000.0,4.65e-05,30]
[408053376,1773076238546,-3000.0,4.66e-05,30]
[408053378,1773076238555,-3000.0,4.67e-05,30]
[408053380,1773076238564,-3000.0,4.68e-05,30]
[408053383,1773076238574,-3000.0,4.69e-05,30]
[408053385,1773076238583,-3000.0,4.7e-05,30]
[408053387,1773076238592,-3000.0,4.71e-05,30]
[408053389,1773076238602,-3000.0,4.72e-05,30]
[408053391,1773076238611,-4877.462059,4.73e-05,30]
[408053393,1773076238620,-732.0,4.963e-05,2]
[408053395,1773076238629,-153.472,4.963e-05,2]
[408053397,1773076238639,-189.44394838,5e-05,2]
[408053399,1773076238647,-1000.0,5.068e-05,2]
[408053401,1773076238656,-383.41436249,5.38e-05,2]
[408053403,1773076238665,-1000.0,5.575e-05,2]
[408053405,1773076238673,-244.0,5.575e-05,2]
[408053407,1773076238683,-1000.0,6.132e-05,2]
[408053409,1773076238693,-492.0,6.132e-05,2]
[408053411,1773076238702,-1000.0,6.746e-05,2]
[408053413,1773076238711,-791.0,6.746e-05,2]
[408053415,1773076238720,-10428.5073437,6.762e-05,2]
[408053417,1773076238730,-2000.17873573,6.8e-05,2]
[408053419,1773076238739,-4601.62265512,6.8e-05,2]
[408053421,1773076238748,-4930.45666459,6.8e-05,2]
[408053423,1773076238758,-5091.00008775,6.8e-05,2]
[408053425,1773076238767,-5580.37752048,6.8e-05,2]
[408053427,1773076238776,-900.44956714,6.8e-05,2]
[408053429,1773076238795,-2092.03612935,6.8e-05,2]
[408053431,1773076238804,-2199.75950842,6.8e-05,2]
[408053433,1773076238814,-2308.31242851,6.8e-05,2]
[408053436,1773076238823,-2524.58872776,6.8e-05,2]
[408053438,1773076238833,-535.84407054,6.8e-05,2]
[408053440,1773076238842,-506.07805005,6.8e-05,2]
[408053442,1773076238851,-499.999998,6.8e-05,2]
[408053444,1773076238862,-455.0,7.039e-05,2]
[408053446,1773076238872,-555.0,7.039e-05,2]
[408053448,1773076238882,-555.0,7.04e-05,2]
[408053450,1773076238892,-2085.07,7.14e-05,2]
[408053452,1773076238901,-555.0,7.14e-05,2]
[408053454,1773076238910,-2085.07,7.313e-05,2]
[408053456,1773076238919,-441.90129914,7.38e-05,2]
[408053458,1773076238929,-1000.0,7.4e-05,2]
[408053460,1773076238938,-1000.0,7.4e-05,2]
[408053461,1773076238949,-1000.0,7.4e-05,2]
[408053462,1773076238958,-1000.0,7.4e-05,2]
[408053463,1773076238967,-1000.0,7.4e-05,2]
[408053464,1773076238976,-1000.0,7.4e-05,2]
[408053465,1773076238985,-1000.0,7.42e-05,2]
[408053466,1773076238995,-1000.0,7.42e-05,2]
[408053467,1773076239004,-2085.07,7.486e-05,2]
[408053468,1773076239013,-10428.5073437,7.537e-05,2]
[408053469,1773076239023,-1983.371167,7.57e-05,2]
[408053470,1773076239033,-2085.07,7.659e-05,2]
[408053471,1773076239043,-2085.07,7.832e-05,2]
[408053472,1773076239054,-1983.371167,7.889e-05,2]
[408053473,1773076239063,-2085.07,8.005e-05,2]
[408053474,1773076239073,-1000.0,8.162e-05,2]
[408053475,1773076239083,-1000.0,8.162e-05,2]
[408053476,1773076239092,-579.0,8.162e-05,2]
[408053477,1773076239103,-2085.07,8.178e-05,2]
[408053478,1773076239117,-1983.371167,8.207e-05,2]
[408053479,1773076239126,-500.0,8.219e-05,2]
[408053480,1773076239135,-500.0,8.219e-05,2]
[408053481,1773076239145,-500.0,8.219e-05,2]
[408053482,1773076239156,-616.54638897,8.219e-05,2]
[408053483,1773076239165,-500.0,8.219e-05,2]
[408053484,1773076239175,-10428.5073437,8.312e-05,2]
[408053485,1773076239186,-2085.07,8.351e-05,2]
[408053486,1773076239195,-331.79624624,8.4e-05,2]
[408053487,1773076239204,-500.0,8.493e-05,2]
[408053488,1773076239214,-2000.0,8.5e-05,2]
[408053489,1773076239223,-2085.07,8.524e-05,2]
[408053490,1773076239232,-1983.371167,8.526e-05,2]
[408053491,1773076239241,-2000.0,8.6e-05,2]
[408053492,1773076239250,-151.0,8.695e-05,2]
[408053493,1773076239260,-156.587,8.695e-05,2]
[408053494,1773076239269,-162.380719,8.695e-05,2]
[408053495,1773076239278,-168.3888056,8.695e-05,2]
[408053496,1773076239288,-174.61919141,8.695e-05,2]
[408053497,1773076239298,-181.08010149,8.695e-05,2]
[408053498,1773076239307,-187.78006525,8.695e-05,2]
[408053499,1773076239316,-194.72792766,8.695e-05,2]
[408053500,1773076239325,-201.93286099,8.695e-05,2]
[408053501,1773076239335,-209.40437684,8.695e-05,2]
[408053502,1773076239344,-217.15233878,8.695e-05,2]
[408053503,1773076239354,-225.18697532,8.695e-05,2]
[408053504,1773076239363,-233.51889341,8.695e-05,2]
[408053505,1773076239373,-242.15909246,8.695e-05,2]
[408053506,1773076239382,-251.11897888,8.695e-05,2]
[408053507,1773076239392,-260.4103811,8.695e-05,2]
[408053508,1773076239401,-270.0455652,8.695e-05,2]
[408053509,1773076239410,-280.03725112,8.695e-05,2]
[408053510,1773076239419,-290.39862941,8.695e-05,2]
[408053511,1773076239428,-301.1433787,8.695e-05,2]
[408053512,1773076239438,-2150.738,8.695e-05,2]
[408053513,1773076239447,-2085.07,8.697e-05,2]
[408053514,1773076239457,-2000.0,8.7e-05,2]
[408053515,1773076239466,-500.0,8.767e-05,2]
[408053516,1773076239475,-2000.0,8.8e-05,2]
[408053517,1773076239485,-1983.371167,8.845e-05,2]
[408053518,1773076239496,-2085.07,8.87e-05,2]
[408053519,1773076239505,-2000.0,8.9e-05,2]
[408053520,1773076239515,-1000.0,8.978e-05,2]
[408053521,1773076239524,-1000.0,8.978e-05,2]
[408053522,1773076239534,-1000.0,8.978e-05,2]
[408053523,1773076239543,-5000.0,9e-05,2]
[408053524,1773076239552,-2000.0,9e-05,2]
[408053525,1773076239561,-500.0,9.041e-05,2]
[408053526,1773076239570,-2085.07,9.043e-05,2]
[408053527,1773076239579,-2651.78467787,9.086e-05,2]
[408053528,1773076239600,-7776.72266583,9.086e-05,2]
[408053529,1773076239610,-2000.0,9.1e-05,2]
[408053530,1773076239619,-1983.371167,9.163e-05,2]
[408053531,1773076239628,-2000.0,9.2e-05,2]
[408053532,1773076239637,-541.0,9.205e-05,2]
[408053533,1773076239647,-209.41837525,9.205e-05,2]
[408053534,1773076239656,-500.0,9.205e-05,2]
[408053535,1773076239666,-183.07490537,9.205e-05,2]
[408053536,1773076239675,-500.0,9.205e-05,2]
[408053537,1773076239684,-500.0,9.205e-05,2]
[408053538,1773076239695,-1467.23455643,9.215e-05,2]
[408053577,1773076240774,-617.83544357,9.215e-05,2]
[408053579,1773076240786,-1579.134072,9.243e-05,2]
[408053763,1773076243471,-651.181234,9.243e-05,2]
[408053766,1773076243480,-541.0,9.26e-05,2]
[408053768,1773076243490,-500.0,9.26e-05,2]
[408053770,1773076243501,-500.0,9.26e-05,2]
[408053772,1773076243510,-500.0,9.26e-05,2]
[408053773,1773076243519,-2000.0,9.3e-05,2]